[Event "*** Titled Tuesday 3|2 Blitz"]
[Site "Chess.com"]
[Date "2016.01.05"]
[Round "3"]
[White "Aygehovit1992"]
[Black "Fibrinogen"]
[Result "1-0"]
[WhiteElo "2390"]
[BlackElo "2190"]
[TimeControl "180+2"]
[EndTime "17:36:19 PST"]
[Termination "Aygehovit1992 won by resignation"]

1. e4 {[%clk 0:03:01.9]} 1... e5 {[%clk 0:03:00.4]} 2. Nf3 {[%clk 0:03:02.7]}
2... Nc6 {[%clk 0:03:00.9]} 3. Bb5 {[%clk 0:03:04.4]} 3... a6 {[%clk 0:03:01.7]}
4. Bxc6 {[%clk 0:03:04]} 4... dxc6 {[%clk 0:03:02.4]} 5. h3 {[%clk 0:03:05.5]}
5... f6 {[%clk 0:03:02.7]} 6. O-O {[%clk 0:03:06.7]} 6... Ne7 {[%clk 0:03:03.8]}
7. d3 {[%clk 0:03:07.7]} 7... g5 {[%clk 0:03:04.4]} 8. Nbd2 {[%clk 0:02:47.7]}
8... h5 {[%clk 0:03:03.9]} 9. Nc4 {[%clk 0:02:44.7]} 9... g4 {[%clk 0:03:03.7]}
10. Nh4 {[%clk 0:02:45.8]} 10... gxh3 {[%clk 0:03:02]} 11. g3 {[%clk 0:02:47.1]}
11... Bg4 {[%clk 0:02:57]} 12. f3 {[%clk 0:02:48.3]} 12... Be6 {[%clk
0:02:57.9]} 13. Ne3 {[%clk 0:02:48.4]} 13... Qd7 {[%clk 0:02:55.2]} 14. Kh2
{[%clk 0:02:49.5]} 14... O-O-O {[%clk 0:02:55.9]} 15. Bd2 {[%clk 0:02:45.8]}
15... c5 {[%clk 0:02:56.6]} 16. Qe2 {[%clk 0:02:46.4]} 16... Nc6 {[%clk
0:02:57.7]} 17. Bc3 {[%clk 0:02:46.9]} 17... Nd4 {[%clk 0:02:58.8]} 18. Bxd4
{[%clk 0:02:47.9]} 18... Qxd4 {[%clk 0:02:53.8]} 19. b3 {[%clk 0:02:44]} 19...
Qd7 {[%clk 0:02:38.5]} 20. Nef5 {[%clk 0:02:44.8]} 20... Rg8 {[%clk 0:02:37.4]}
21. Rg1 {[%clk 0:02:36.2]} 21... Bd6 {[%clk 0:02:37.4]} 22. Kxh3 {[%clk
0:02:35.5]} 22... Rg5 {[%clk 0:02:37.9]} 23. Kh2 {[%clk 0:02:36.4]} 23... Rdg8
{[%clk 0:02:38.6]} 24. Raf1 {[%clk 0:02:35.9]} 24... Qh7 {[%clk 0:02:27.1]} 25.
Qg2 {[%clk 0:02:28.9]} 25... b5 {[%clk 0:01:57.1]} 26. Kh1 {[%clk 0:02:27.4]}
26... Rh8 {[%clk 0:01:52.2]} 27. Qh2 {[%clk 0:02:27.7]} 27... Rgg8 {[%clk
0:01:50.6]} 28. Ra1 {[%clk 0:02:24]} 28... Kb7 {[%clk 0:01:50.4]} 29. a4 {[%clk
0:02:24.9]} 29... Qd7 {[%clk 0:01:46.2]} 30. axb5 {[%clk 0:02:22.1]} 30... axb5
{[%clk 0:01:46.9]} 31. c4 {[%clk 0:02:11.3]} 31... Ra8 {[%clk 0:01:36.7]} 32.
Ng6 {[%clk 0:01:31.9]} 32... Rxa1 {[%clk 0:01:22.6]} 33. Rxa1 {[%clk 0:01:31.1]}
33... Ra8 {[%clk 0:01:16.9]} 34. Rxa8 {[%clk 0:01:31.3]} 34... Kxa8 {[%clk
0:01:18.6]} 35. Qxh5 {[%clk 0:01:26.7]} 35... Bf7 {[%clk 0:01:07]} 36. Qh8+
{[%clk 0:01:25.8]} 36... Qe8 {[%clk 0:01:02.5]} 37. Qxe8+ {[%clk 0:01:25.2]}
37... Bxe8 {[%clk 0:01:04.2]} 38. Nxd6 {[%clk 0:01:23.2]} 38... cxd6 {[%clk
0:01:02.2]} 39. Ne7 {[%clk 0:01:24.4]} 39... bxc4 {[%clk 0:00:56.9]} 40. dxc4
{[%clk 0:01:25.6]} 40... Bd7 {[%clk 0:00:56]} 41. Nf5 {[%clk 0:01:25.7]} 41...
Bxf5 {[%clk 0:00:53.6]} 42. exf5 {[%clk 0:01:27]} 42... Kb7 {[%clk 0:00:54.7]}
43. Kg2 {[%clk 0:01:28.3]} 43... Kc6 {[%clk 0:00:55.9]} 44. g4 {[%clk
0:01:28.8]} 44... d5 {[%clk 0:00:57.1]} 45. cxd5+ {[%clk 0:01:18.3]} 45... Kxd5
{[%clk 0:00:58.6]} 46. Kg3 {[%clk 0:01:16.7]} 46... Kd4 {[%clk 0:00:40]} 47. g5
{[%clk 0:01:16.8]} 1-0

[Event "*** Titled Tuesday 3|2 Blitz"]
[Site "Chess.com"]
[Date "2016.01.05"]
[Round "3"]
[White "Gabrielian_Artur"]
[Black "IMRosen"]
[Result "1-0"]
[WhiteElo "2478"]
[BlackElo "2207"]
[TimeControl "180+2"]
[EndTime "17:36:47 PST"]
[Termination "Gabrielian_Artur won by resignation"]

1. e4 {[%clk 0:03:01.9]} 1... c5 {[%clk 0:02:58.4]} 2. Nf3 {[%clk 0:03:01]} 2...
e6 {[%clk 0:02:59.9]} 3. d4 {[%clk 0:03:01.7]} 3... cxd4 {[%clk 0:03:01.8]} 4.
Nxd4 {[%clk 0:03:02.9]} 4... Nc6 {[%clk 0:03:03.5]} 5. Nc3 {[%clk 0:03:03.7]}
5... Qc7 {[%clk 0:03:05.1]} 6. Be2 {[%clk 0:03:04.8]} 6... a6 {[%clk 0:03:06.8]}
7. O-O {[%clk 0:03:05.8]} 7... Nf6 {[%clk 0:03:08.5]} 8. Be3 {[%clk 0:03:05.7]}
8... Bb4 {[%clk 0:03:10]} 9. Na4 {[%clk 0:03:06.5]} 9... O-O {[%clk 0:03:11.6]}
10. c4 {[%clk 0:03:06.6]} 10... Be7 {[%clk 0:03:10.2]} 11. Rc1 {[%clk
0:03:04.4]} 11... Nxe4 {[%clk 0:03:10]} 12. c5 {[%clk 0:03:05.2]} 12... Rb8
{[%clk 0:03:11]} 13. Bf3 {[%clk 0:03:03.9]} 13... Ng5 {[%clk 0:03:11.3]} 14. a3
{[%clk 0:02:50.2]} 14... Nxf3+ {[%clk 0:02:56.5]} 15. Qxf3 {[%clk 0:02:50.7]}
15... Nxd4 {[%clk 0:02:58.2]} 16. Bxd4 {[%clk 0:02:51.6]} 16... e5 {[%clk
0:01:59.3]} 17. Be3 {[%clk 0:02:42.5]} 17... d6 {[%clk 0:02:00.7]} 18. Nb6
{[%clk 0:02:32.3]} 18... dxc5 {[%clk 0:01:46.4]} 19. Nd5 {[%clk 0:02:32.7]}
19... Qd8 {[%clk 0:01:47.5]} 20. Nxe7+ {[%clk 0:02:33.4]} 20... Qxe7 {[%clk
0:01:48.6]} 21. Bxc5 {[%clk 0:02:34.6]} 21... Qe8 {[%clk 0:01:44.4]} 22. Bxf8
{[%clk 0:02:34.1]} 22... Qxf8 {[%clk 0:01:38.2]} 23. Qd5 {[%clk 0:02:35.1]}
23... Qe7 {[%clk 0:01:33.9]} 24. Rfe1 {[%clk 0:02:31.9]} 24... Be6 {[%clk
0:01:32.7]} 25. Qxe5 {[%clk 0:02:30.6]} 25... Rd8 {[%clk 0:01:34.3]} 26. h3
{[%clk 0:02:28.4]} 26... b5 {[%clk 0:01:31.6]} 27. Rc7 {[%clk 0:02:28.6]} 27...
Qh4 {[%clk 0:01:28.5]} 28. Re4 {[%clk 0:02:22.9]} 28... Qh6 {[%clk 0:01:28.3]}
29. Rd4 {[%clk 0:02:20.3]} 29... Rf8 {[%clk 0:01:23.5]} 30. Kh2 {[%clk
0:02:15.6]} 30... Qg6 {[%clk 0:01:19.7]} 31. f4 {[%clk 0:02:13]} 31... Bc4
{[%clk 0:01:05.6]} 32. f5 {[%clk 0:02:08.6]} 32... Qb6 {[%clk 0:00:59.6]} 33.
Rg4 {[%clk 0:02:03.2]} 33... Qh6 {[%clk 0:00:54.5]} 34. Rc6 {[%clk 0:01:47.4]}
34... f6 {[%clk 0:00:55.6]} 35. Qe7 {[%clk 0:01:41.8]} 35... a5 {[%clk
0:00:41.9]} 36. Rc7 {[%clk 0:01:27.1]} 36... Bf7 {[%clk 0:00:41.7]} 37. b4
{[%clk 0:01:23.4]} 37... a4 {[%clk 0:00:41.9]} 38. Rc3 {[%clk 0:01:23.2]} 38...
Re8 {[%clk 0:00:36.6]} 39. Qd6 {[%clk 0:01:17.7]} 39... Bh5 {[%clk 0:00:33]} 40.
Qd5+ {[%clk 0:01:12.1]} 40... Bf7 {[%clk 0:00:31.2]} 41. Qxb5 {[%clk 0:01:12.1]}
41... Re1 {[%clk 0:00:12.8]} 42. Rc8+ {[%clk 0:01:11]} 1-0

[Event "*** Titled Tuesday 3|2 Blitz"]
[Site "Chess.com"]
[Date "2016.01.05"]
[Round "3"]
[White "zanbato17"]
[Black "Yaacovn"]
[Result "1-0"]
[WhiteElo "2246"]
[BlackElo "2532"]
[TimeControl "180+2"]
[EndTime "17:36:48 PST"]
[Termination "zanbato17 won by resignation"]

1. d4 {[%clk 0:03:01.9]} 1... Nf6 {[%clk 0:02:56.8]} 2. c4 {[%clk 0:03:03]} 2...
e5 {[%clk 0:02:56.5]} 3. dxe5 {[%clk 0:03:02.6]} 3... Ne4 {[%clk 0:02:57.2]} 4.
Nf3 {[%clk 0:02:56.2]} 4... Nc6 {[%clk 0:02:58.4]} 5. Nc3 {[%clk 0:02:54.9]}
5... Nxc3 {[%clk 0:02:56.1]} 6. bxc3 {[%clk 0:02:56.8]} 6... d6 {[%clk 0:02:58]}
7. exd6 {[%clk 0:02:57.3]} 7... Bxd6 {[%clk 0:02:59.1]} 8. e3 {[%clk 0:02:58.2]}
8... Qf6 {[%clk 0:03:00.2]} 9. Bd2 {[%clk 0:02:56.6]} 9... Bg4 {[%clk
0:03:01.1]} 10. Be2 {[%clk 0:02:57.4]} 10... O-O-O {[%clk 0:03:02.3]} 11. h3
{[%clk 0:02:52.5]} 11... Bxf3 {[%clk 0:02:57.8]} 12. Bxf3 {[%clk 0:02:54.4]}
12... Ne5 {[%clk 0:02:59.1]} 13. Be2 {[%clk 0:02:55.2]} 13... Qg6 {[%clk
0:02:57.1]} 14. O-O {[%clk 0:02:47.9]} 14... Bc5 {[%clk 0:02:57.9]} 15. Qe1
{[%clk 0:02:35.7]} 15... Rd6 {[%clk 0:02:45.3]} 16. f4 {[%clk 0:02:35.5]} 16...
Nd3 {[%clk 0:02:38.6]} 17. Qh4 {[%clk 0:02:21.7]} 17... Qe4 {[%clk 0:02:09.8]}
18. Qg4+ {[%clk 0:02:10.3]} 18... f5 {[%clk 0:02:09.6]} 19. Qxg7 {[%clk
0:02:09.1]} 19... Rhd8 {[%clk 0:01:39.5]} 20. Bf3 {[%clk 0:02:03.2]} 20... Qxc4
{[%clk 0:01:26.4]} 21. Rab1 {[%clk 0:01:52.6]} 21... Bb6 {[%clk 0:01:25.9]} 22.
Qxh7 {[%clk 0:01:47.7]} 22... Nxf4 {[%clk 0:01:10.9]} 23. Qxf5+ {[%clk 0:01:47]}
23... Kb8 {[%clk 0:01:11.8]} 24. Be1 {[%clk 0:01:39.9]} 24... Nd5 {[%clk
0:00:45.9]} 25. Bf2 {[%clk 0:01:28.9]} 25... Nxc3 {[%clk 0:00:43.2]} 26. Rb2
{[%clk 0:01:21.6]} 26... a6 {[%clk 0:00:38.9]} 27. Rc2 {[%clk 0:01:10]} 27...
Rd2 {[%clk 0:00:18.6]} 28. Rfc1 {[%clk 0:01:05.6]} 28... Rxc2 {[%clk 0:00:12.8]}
29. Qxc2 {[%clk 0:01:06.2]} 29... Rd3 {[%clk 0:00:11]} 30. Kh1 {[%clk
0:01:01.6]} 30... Bxe3 {[%clk 0:00:11.5]} 31. Be2 {[%clk 0:00:56.5]} 31... Rd2
{[%clk 0:00:12.3]} 32. Bxc4 {[%clk 0:00:53.4]} 32... Rxc2 {[%clk 0:00:08.4]} 33.
Rxc2 {[%clk 0:00:55.3]} 33... Nd1 {[%clk 0:00:09.5]} 34. Bxe3 {[%clk 0:00:52.1]}
34... Nxe3 {[%clk 0:00:11.4]} 35. Rc3 {[%clk 0:00:53.6]} 35... Nd1 {[%clk
0:00:12.8]} 36. Rc1 {[%clk 0:00:52.3]} 36... Nf2+ {[%clk 0:00:13.6]} 37. Kg1
{[%clk 0:00:52.6]} 37... Ne4 {[%clk 0:00:15.5]} 38. h4 {[%clk 0:00:52.4]} 38...
b5 {[%clk 0:00:15.3]} 39. Bd3 {[%clk 0:00:50.6]} 39... Ng3 {[%clk 0:00:17.2]}
40. Kf2 {[%clk 0:00:49.1]} 40... Nh5 {[%clk 0:00:18.5]} 41. Be2 {[%clk
0:00:48.7]} 41... Nf4 {[%clk 0:00:19.7]} 42. h5 {[%clk 0:00:49.7]} 1-0

[Event "*** Titled Tuesday 3|2 Blitz"]
[Site "Chess.com"]
[Date "2016.01.05"]
[Round "3"]
[White "lolsirs"]
[Black "saraswathii"]
[Result "0-1"]
[WhiteElo "2103"]
[BlackElo "1884"]
[TimeControl "180+2"]
[EndTime "17:36:53 PST"]
[Termination "saraswathii won by resignation"]

1. d4 {[%clk 0:03:01.9]} 1... c5 {[%clk 0:03:00.2]} 2. d5 {[%clk 0:03:02.6]}
2... Nf6 {[%clk 0:02:59.3]} 3. c4 {[%clk 0:02:57.4]} 3... e6 {[%clk 0:02:51.8]}
4. Nc3 {[%clk 0:02:57.7]} 4... d6 {[%clk 0:02:46]} 5. Nf3 {[%clk 0:02:49.3]}
5... Be7 {[%clk 0:02:46.5]} 6. e4 {[%clk 0:02:49.3]} 6... e5 {[%clk 0:02:44.6]}
7. Be2 {[%clk 0:02:39.8]} 7... O-O {[%clk 0:02:44.5]} 8. O-O {[%clk 0:02:36.8]}
8... a6 {[%clk 0:02:37.2]} 9. a3 {[%clk 0:02:37.5]} 9... h6 {[%clk 0:02:24.4]}
10. b4 {[%clk 0:02:37.6]} 10... cxb4 {[%clk 0:02:19.8]} 11. axb4 {[%clk
0:02:38.1]} 11... Nh7 {[%clk 0:02:11.1]} 12. Ba3 {[%clk 0:02:37.9]} 12... f5
{[%clk 0:02:03.8]} 13. Nd2 {[%clk 0:02:35.6]} 13... fxe4 {[%clk 0:01:49.8]} 14.
Ndxe4 {[%clk 0:02:34.4]} 14... Bf5 {[%clk 0:01:50.5]} 15. Bg4 {[%clk 0:02:30.7]}
15... Qd7 {[%clk 0:01:33.8]} 16. Bxf5 {[%clk 0:02:27.9]} 16... Qxf5 {[%clk
0:01:35.7]} 17. c5 {[%clk 0:02:23.5]} 17... dxc5 {[%clk 0:01:33.4]} 18. bxc5
{[%clk 0:02:19.3]} 18... Nd7 {[%clk 0:01:27.6]} 19. d6 {[%clk 0:02:14.4]} 19...
Bg5 {[%clk 0:01:17.6]} 20. Qd5+ {[%clk 0:02:14.6]} 20... Kh8 {[%clk 0:01:14.3]}
21. Qxb7 {[%clk 0:02:14.9]} 21... Rab8 {[%clk 0:01:07.5]} 22. Qd5 {[%clk
0:02:14.6]} 22... Ndf6 {[%clk 0:01:03.5]} 23. Qc4 {[%clk 0:02:07.7]} 23... Bf4
{[%clk 0:00:58.2]} 24. c6 {[%clk 0:02:06.6]} 24... Rfc8 {[%clk 0:00:43.1]} 25.
g3 {[%clk 0:02:05.7]} 25... Bg5 {[%clk 0:00:34.7]} 26. c7 {[%clk 0:02:03.7]}
26... Rb7 {[%clk 0:00:33]} 27. Qxa6 {[%clk 0:02:00.9]} 27... Nxe4 {[%clk
0:00:27.4]} 28. Qxb7 {[%clk 0:01:59.7]} 28... Nxc3 {[%clk 0:00:28]} 29. Qc6
{[%clk 0:01:42.8]} 29... Ne2+ {[%clk 0:00:26]} 30. Kg2 {[%clk 0:01:43.4]} 30...
Nf6 {[%clk 0:00:22.1]} 31. f3 {[%clk 0:01:40.4]} 31... Nd4 {[%clk 0:00:21.2]}
32. Qb7 {[%clk 0:01:36.9]} 32... Qc2+ {[%clk 0:00:20.6]} 33. Rf2 {[%clk
0:01:37]} 33... Qf5 {[%clk 0:00:21.3]} 34. Rb1 {[%clk 0:01:35.9]} 34... Rg8
{[%clk 0:00:16.3]} 35. Qb8 {[%clk 0:01:33.1]} 35... Be3 {[%clk 0:00:14.1]} 36.
Qxg8+ {[%clk 0:01:31.1]} 36... Nxg8 {[%clk 0:00:14.4]} 37. Rff1 {[%clk
0:01:28.1]} 37... Qc2+ {[%clk 0:00:13.7]} 38. Kh1 {[%clk 0:01:27.3]} 38... Qc6
{[%clk 0:00:11.3]} 39. Rbc1 {[%clk 0:01:27.2]} 39... Bxc1 {[%clk 0:00:11.2]} 40.
c8=Q {[%clk 0:01:24]} 40... Qxc8 {[%clk 0:00:11]} 41. Rxc1 {[%clk 0:01:24.7]}
41... Qa8 {[%clk 0:00:11.9]} 42. Rc3 {[%clk 0:01:19.9]} 42... Nb5 {[%clk
0:00:11.1]} 43. Rd3 {[%clk 0:01:17.3]} 43... Nxa3 {[%clk 0:00:11.6]} 44. d7
{[%clk 0:01:18.2]} 44... Qd8 {[%clk 0:00:12]} 45. Rxa3 {[%clk 0:01:15.8]} 45...
Qxd7 {[%clk 0:00:13]} 46. Rd3 {[%clk 0:01:15]} 46... Qxd3 {[%clk 0:00:13.4]} 0-1

[Event "*** Titled Tuesday 3|2 Blitz"]
[Site "Chess.com"]
[Date "2016.01.05"]
[Round "3"]
[White "cool64chess"]
[Black "jcibarra"]
[Result "0-1"]
[WhiteElo "2225"]
[BlackElo "2502"]
[TimeControl "180+2"]
[EndTime "17:37:19 PST"]
[Termination "jcibarra won by resignation"]

1. d4 {[%clk 0:03:01.9]} 1... Nf6 {[%clk 0:03:00.1]} 2. c4 {[%clk 0:03:01.6]}
2... d6 {[%clk 0:03:01.4]} 3. Nc3 {[%clk 0:03:02.4]} 3... e5 {[%clk 0:03:02.5]}
4. dxe5 {[%clk 0:03:01.5]} 4... dxe5 {[%clk 0:03:03.7]} 5. Qxd8+ {[%clk
0:03:02.4]} 5... Kxd8 {[%clk 0:03:05.6]} 6. Bg5 {[%clk 0:03:03.4]} 6... Be6
{[%clk 0:03:06.3]} 7. Nf3 {[%clk 0:03:01]} 7... Nd7 {[%clk 0:03:05.8]} 8. O-O-O
{[%clk 0:02:59.3]} 8... Kc8 {[%clk 0:03:06.8]} 9. e3 {[%clk 0:02:52.8]} 9... c6
{[%clk 0:03:07.5]} 10. h3 {[%clk 0:02:49.2]} 10... Bb4 {[%clk 0:03:08]} 11. Nb1
{[%clk 0:02:28.2]} 11... Ne4 {[%clk 0:03:05.8]} 12. Bh4 {[%clk 0:02:29.1]} 12...
f6 {[%clk 0:03:07.1]} 13. Bd3 {[%clk 0:02:29.4]} 13... Nec5 {[%clk 0:03:03.4]}
14. Be2 {[%clk 0:02:29.4]} 14... a5 {[%clk 0:02:53.3]} 15. a3 {[%clk 0:02:21.7]}
15... Nb3+ {[%clk 0:02:54.2]} 16. Kc2 {[%clk 0:02:22]} 16... Na1+ {[%clk
0:02:55.8]} 17. Kc1 {[%clk 0:02:20.1]} 17... Be7 {[%clk 0:02:51.9]} 18. Nfd2
{[%clk 0:02:06.1]} 18... Nc5 {[%clk 0:02:50.4]} 19. Nc3 {[%clk 0:02:02.5]} 19...
Bf5 {[%clk 0:02:39.7]} 20. e4 {[%clk 0:01:55]} 20... Nab3+ {[%clk 0:02:35.6]}
21. Nxb3 {[%clk 0:01:41.6]} 21... Nxb3+ {[%clk 0:02:37.5]} 22. Kb1 {[%clk
0:01:41]} 22... Be6 {[%clk 0:02:33.8]} 23. Bg4 {[%clk 0:01:33.2]} 23... Nc5
{[%clk 0:02:22.9]} 24. f3 {[%clk 0:01:03]} 24... h5 {[%clk 0:02:11.4]} 25. Bxe6+
{[%clk 0:01:03.3]} 25... Nxe6 {[%clk 0:02:13.3]} 26. Bf2 {[%clk 0:01:04.2]}
26... h4 {[%clk 0:02:07.5]} 27. Na4 {[%clk 0:01:04.5]} 27... Bd8 {[%clk
0:01:54.4]} 28. Bb6 {[%clk 0:00:58]} 28... Ra6 {[%clk 0:01:51.3]} 29. Bxd8
{[%clk 0:00:57.9]} 29... Rxd8 {[%clk 0:01:51.8]} 30. Rxd8+ {[%clk 0:00:58.6]}
30... Kxd8 {[%clk 0:01:53.7]} 31. Rd1+ {[%clk 0:00:57.7]} 31... Ke7 {[%clk
0:01:55.1]} 32. Kc2 {[%clk 0:00:49]} 32... g5 {[%clk 0:01:54.2]} 33. Rg1 {[%clk
0:00:38]} 33... Ra8 {[%clk 0:01:52.9]} 34. Kc3 {[%clk 0:00:26.4]} 34... Rd8
{[%clk 0:01:49.2]} 35. g3 {[%clk 0:00:23.9]} 35... hxg3 {[%clk 0:01:48.7]} 36.
Rxg3 {[%clk 0:00:24.3]} 36... Nf4 {[%clk 0:01:50.6]} 37. Kc2 {[%clk 0:00:21.6]}
37... Ne2 {[%clk 0:01:42.1]} 38. Rg4 {[%clk 0:00:22.6]} 38... Nd4+ {[%clk
0:01:43.1]} 39. Kc3 {[%clk 0:00:20.6]} 39... Nxf3 {[%clk 0:01:45]} 40. Nc5
{[%clk 0:00:21.1]} 40... b6 {[%clk 0:01:37.6]} 41. Nb3 {[%clk 0:00:21.7]} 41...
Rh8 {[%clk 0:01:24.6]} 42. Rg3 {[%clk 0:00:22.1]} 42... Nh4 {[%clk 0:01:21.9]}
43. c5 {[%clk 0:00:21.4]} 43... a4 {[%clk 0:01:23.3]} 44. Nd2 {[%clk 0:00:20.9]}
44... b5 {[%clk 0:01:24.7]} 45. b3 {[%clk 0:00:21]} 45... Ra8 {[%clk 0:01:22]}
46. Nf3 {[%clk 0:00:18.3]} 46... Nxf3 {[%clk 0:01:15.4]} 47. Rxf3 {[%clk
0:00:19.3]} 47... axb3 {[%clk 0:01:17.3]} 48. Kxb3 {[%clk 0:00:20.2]} 48... Ra4
{[%clk 0:01:18.8]} 49. Re3 {[%clk 0:00:20.3]} 49... Rc4 {[%clk 0:01:19.6]} 50.
h4 {[%clk 0:00:20.6]} 50... gxh4 {[%clk 0:01:19.7]} 51. Kb2 {[%clk 0:00:21.4]}
51... Kf7 {[%clk 0:01:18.8]} 52. Kb3 {[%clk 0:00:22]} 52... Kg6 {[%clk
0:01:19.9]} 53. Rd3 {[%clk 0:00:21.8]} 53... Rxc5 {[%clk 0:01:19.1]} 0-1

[Event "*** Titled Tuesday 3|2 Blitz"]
[Site "Chess.com"]
[Date "2016.01.05"]
[Round "3"]
[White "chesstatour"]
[Black "aNONoNonono"]
[Result "0-1"]
[WhiteElo "1920"]
[BlackElo "2170"]
[TimeControl "180+2"]
[EndTime "17:37:24 PST"]
[Termination "aNONoNonono won by resignation"]

1. c4 {[%clk 0:03:01.9]} 1... Nf6 {[%clk 0:03:00.2]} 2. Nc3 {[%clk 0:03:02.3]}
2... e6 {[%clk 0:03:00.2]} 3. e4 {[%clk 0:02:54.6]} 3... d5 {[%clk 0:02:55.8]}
4. cxd5 {[%clk 0:02:54.8]} 4... exd5 {[%clk 0:02:52.6]} 5. exd5 {[%clk
0:02:52.5]} 5... Nxd5 {[%clk 0:02:43.1]} 6. d4 {[%clk 0:02:51.9]} 6... Be7
{[%clk 0:02:41.6]} 7. Nf3 {[%clk 0:02:50.4]} 7... O-O {[%clk 0:02:41.7]} 8. Be2
{[%clk 0:02:50.9]} 8... Re8 {[%clk 0:02:35]} 9. O-O {[%clk 0:02:51.3]} 9... Nc6
{[%clk 0:02:29.3]} 10. Bd2 {[%clk 0:02:33]} 10... Bg4 {[%clk 0:02:24.5]} 11. Rc1
{[%clk 0:02:08.2]} 11... Bf6 {[%clk 0:02:19.7]} 12. Nxd5 {[%clk 0:01:53.6]}
12... Qxd5 {[%clk 0:02:18.8]} 13. Be3 {[%clk 0:01:35.7]} 13... Rad8 {[%clk
0:01:55.7]} 14. Bc4 {[%clk 0:00:50.5]} 14... Qh5 {[%clk 0:01:48]} 15. d5 {[%clk
0:00:34]} 15... Ne5 {[%clk 0:01:36.9]} 16. Be2 {[%clk 0:00:34.9]} 16... Nxf3+
{[%clk 0:01:31]} 17. Bxf3 {[%clk 0:00:33.4]} 17... Bxf3 {[%clk 0:01:31.2]} 18.
Qxf3 {[%clk 0:00:35.3]} 18... Qxf3 {[%clk 0:01:29.2]} 19. gxf3 {[%clk
0:00:35.1]} 19... Rxd5 {[%clk 0:01:24]} 20. Rxc7 {[%clk 0:00:28.8]} 20... Rb5
{[%clk 0:01:23.9]} 21. b3 {[%clk 0:00:24.5]} 21... h6 {[%clk 0:01:21.9]} 22. Rd1
{[%clk 0:00:20.7]} 22... Re7 {[%clk 0:01:16.8]} 23. Rd8+ {[%clk 0:00:15.2]}
23... Kh7 {[%clk 0:01:16.9]} 24. Rxe7 {[%clk 0:00:16.5]} 24... Bxe7 {[%clk
0:01:16.7]} 25. Rd7 {[%clk 0:00:17.9]} 25... Bc5 {[%clk 0:01:04.2]} 26. Rxf7
{[%clk 0:00:17]} 26... Kg6 {[%clk 0:01:01.2]} 27. Rd7 {[%clk 0:00:15.8]} 27...
Bxe3 {[%clk 0:00:58.8]} 28. fxe3 {[%clk 0:00:17.7]} 28... Ra5 {[%clk 0:00:58.2]}
29. a4 {[%clk 0:00:16]} 29... b6 {[%clk 0:00:50.8]} 30. Kf2 {[%clk 0:00:16.4]}
30... Rc5 {[%clk 0:00:45.9]} 31. Rxa7 {[%clk 0:00:16.5]} 31... Rc2+ {[%clk
0:00:47]} 32. Kg3 {[%clk 0:00:17.1]} 32... Rc3 {[%clk 0:00:48.4]} 33. b4 {[%clk
0:00:18.3]} 33... Rxe3 {[%clk 0:00:46.6]} 34. Ra6 {[%clk 0:00:17.3]} 34... Re6
{[%clk 0:00:46]} 35. a5 {[%clk 0:00:17.2]} 35... Kf7 {[%clk 0:00:46.3]} 36. Rxb6
{[%clk 0:00:17]} 36... Re1 {[%clk 0:00:45.6]} 37. a6 {[%clk 0:00:17.4]} 37...
Ra1 {[%clk 0:00:45.3]} 38. Rb7+ {[%clk 0:00:17.1]} 38... Ke6 {[%clk 0:00:44.2]}
39. b5 {[%clk 0:00:17.6]} 39... Kd5 {[%clk 0:00:43.9]} 40. Rxg7 {[%clk
0:00:16.6]} 40... Rg1+ {[%clk 0:00:44.2]} 41. Kf4 {[%clk 0:00:16]} 41... Rxg7
{[%clk 0:00:45]} 42. b6 {[%clk 0:00:17.4]} 42... Kc6 {[%clk 0:00:45]} 43. b7
{[%clk 0:00:11.2]} 43... Rg8 {[%clk 0:00:43.8]} 44. Kf5 {[%clk 0:00:08.1]} 44...
Kb6 {[%clk 0:00:44.5]} 45. Kf6 {[%clk 0:00:09.1]} 45... Kxa6 {[%clk 0:00:43.9]}
46. f4 {[%clk 0:00:07.5]} 46... Kxb7 {[%clk 0:00:44.4]} 47. f5 {[%clk
0:00:08.3]} 47... Kc7 {[%clk 0:00:44.7]} 48. Kf7 {[%clk 0:00:09.8]} 48... Rg2
{[%clk 0:00:45.2]} 49. f6 {[%clk 0:00:11.3]} 49... Rxh2 {[%clk 0:00:46.2]} 50.
Kg6 {[%clk 0:00:11.4]} 50... Rf2 {[%clk 0:00:47.4]} 0-1